[Event "*** Titled Tuesday Blitz"]
[Site "Chess.com"]
[Date "2018.08.07"]
[Round "8"]
[White "chenrip"]
[Black "Mimsychess"]
[Result "1-0"]
[WhiteElo "2421"]
[BlackElo "2269"]
[TimeControl "180+2"]
[EndTime "14:51:35 PDT"]
[Termination "chenrip won on time"]

1. e4 {[%clk 0:03:00.2]} 1... e5 {[%clk 0:02:59.7]} 2. Nf3 {[%clk 0:02:59.9]}
2... Nc6 {[%clk 0:03:00.8]} 3. d4 {[%clk 0:02:59.8]} 3... exd4 {[%clk
0:03:01.4]} 4. Nxd4 {[%clk 0:03:01.4]} 4... Bc5 {[%clk 0:03:00.1]} 5. Be3 {[%clk
0:03:00]} 5... Qf6 {[%clk 0:02:58]} 6. c3 {[%clk 0:03:00.5]} 6... Nge7 {[%clk
0:02:55.3]} 7. Bc4 {[%clk 0:02:55.2]} 7... Ne5 {[%clk 0:02:48.2]} 8. Bb3 {[%clk
0:02:51.9]} 8... d6 {[%clk 0:02:43.9]} 9. h3 {[%clk 0:02:49.4]} 9... O-O {[%clk
0:02:35.8]} 10. O-O {[%clk 0:02:50]} 10... Qg6 {[%clk 0:02:36.9]} 11. Kh2 {[%clk
0:02:46.3]} 11... Qxe4 {[%clk 0:01:53.6]} 12. Nd2 {[%clk 0:02:46.6]} 12... Qh4
{[%clk 0:01:52.6]} 13. N2f3 {[%clk 0:02:35.3]} 13... Ng4+ {[%clk 0:01:41.8]} 14.
Kg1 {[%clk 0:02:30.4]} 14... Nxe3 {[%clk 0:01:43.7]} 15. Nxh4 {[%clk 0:02:07.9]}
15... Nxd1 {[%clk 0:01:44]} 16. Raxd1 {[%clk 0:02:08.9]} 16... d5 {[%clk
0:01:25.3]} 17. Nb5 {[%clk 0:02:00.3]} 17... c6 {[%clk 0:01:23.5]} 18. Nd4
{[%clk 0:01:49.3]} 18... Ng6 {[%clk 0:01:18.3]} 19. Nhf3 {[%clk 0:01:39.2]}
19... Re8 {[%clk 0:01:13.5]} 20. Rfe1 {[%clk 0:01:39.7]} 20... Bd7 {[%clk
0:01:12.9]} 21. Bc2 {[%clk 0:01:32.5]} 21... f6 {[%clk 0:00:46.9]} 22. Kf1
{[%clk 0:01:30.9]} 22... Ne5 {[%clk 0:00:45.5]} 23. Nd2 {[%clk 0:01:19.9]} 23...
a5 {[%clk 0:00:27.7]} 24. N4b3 {[%clk 0:01:08.8]} 24... Bb6 {[%clk 0:00:26]} 25.
a4 {[%clk 0:00:58.3]} 25... c5 {[%clk 0:00:21.3]} 26. Nc1 {[%clk 0:00:59.4]}
26... d4 {[%clk 0:00:19.7]} 27. Ne4 {[%clk 0:00:49.4]} 27... Bc6 {[%clk
0:00:09.5]} 28. f4 {[%clk 0:00:29.8]} 28... Nc4 {[%clk 0:00:04.4]} 29. b3 {[%clk
0:00:29]} 29... Ne3+ {[%clk 0:00:03.5]} 30. Rxe3 {[%clk 0:00:30.2]} 30... dxe3
{[%clk 0:00:04.7]} 31. Ng3 {[%clk 0:00:27.2]} 31... Rad8 {[%clk 0:00:04.8]} 32.
Nd3 {[%clk 0:00:24]} 32... c4 {[%clk 0:00:05.4]} 33. bxc4 {[%clk 0:00:24.6]}
33... e2+ {[%clk 0:00:05.9]} 34. Nxe2 {[%clk 0:00:25.1]} 34... Re3 {[%clk
0:00:06.9]} 35. c5 {[%clk 0:00:23]} 35... Bc7 {[%clk 0:00:08.1]} 36. Kf2 {[%clk
0:00:21.4]} 36... Rde8 {[%clk 0:00:08.7]} 37. Nd4 {[%clk 0:00:21]} 37... R3e4
{[%clk 0:00:07.8]} 38. g3 {[%clk 0:00:20.1]} 38... Re3 {[%clk 0:00:07.8]} 39.
Rd2 {[%clk 0:00:19.3]} 39... R3e4 {[%clk 0:00:07.5]} 40. Nc1 {[%clk 0:00:17.2]}
40... Re3 {[%clk 0:00:07.4]} 41. Nf5 {[%clk 0:00:18.1]} 41... Rxc3 {[%clk
0:00:07.9]} 42. Ne2 {[%clk 0:00:17.6]} 42... Rxc5 {[%clk 0:00:08.8]} 43. Ned4
{[%clk 0:00:16.4]} 43... Be4 {[%clk 0:00:08.1]} 44. Bxe4 {[%clk 0:00:13.8]}
44... Rxe4 {[%clk 0:00:10]} 45. Ne3 {[%clk 0:00:15]} 45... g6 {[%clk 0:00:10.2]}
46. Nb5 {[%clk 0:00:15.7]} 46... Re7 {[%clk 0:00:09.7]} 47. Nd5 {[%clk
0:00:16.1]} 47... Rxd5 {[%clk 0:00:08.5]} 48. Rxd5 {[%clk 0:00:16.8]} 48... Bb6+
{[%clk 0:00:09.9]} 49. Kf3 {[%clk 0:00:17.5]} 49... Re3+ {[%clk 0:00:10.8]} 50.
Kg2 {[%clk 0:00:19.1]} 50... Re4 {[%clk 0:00:10.7]} 51. Rd7 {[%clk 0:00:19.2]}
51... Rxa4 {[%clk 0:00:09.3]} 52. Rxb7 {[%clk 0:00:20.6]} 52... Bc5 {[%clk
0:00:10.6]} 53. Rc7 {[%clk 0:00:19.5]} 53... Bf8 {[%clk 0:00:10.6]} 54. Ra7
{[%clk 0:00:18.4]} 54... Ra2+ {[%clk 0:00:10.6]} 55. Kf3 {[%clk 0:00:19.7]}
55... a4 {[%clk 0:00:11.3]} 56. f5 {[%clk 0:00:19.7]} 56... a3 {[%clk
0:00:08.9]} 57. fxg6 {[%clk 0:00:20.1]} 57... hxg6 {[%clk 0:00:10.8]} 58. Kg4
{[%clk 0:00:20.6]} 58... Ra1 {[%clk 0:00:08.7]} 59. h4 {[%clk 0:00:21.5]} 59...
a2 {[%clk 0:00:09.4]} 60. Nc3 {[%clk 0:00:20.8]} 60... f5+ {[%clk 0:00:10.2]}
61. Kg5 {[%clk 0:00:22]} 61... Rg1 {[%clk 0:00:10.9]} 62. Nxa2 {[%clk
0:00:22.3]} 62... Rxg3+ {[%clk 0:00:11.8]} 63. Kf6 {[%clk 0:00:23.9]} 63... Rg4
{[%clk 0:00:10.2]} 64. Nc3 {[%clk 0:00:21.7]} 64... Rc4 {[%clk 0:00:07.8]} 65.
Nd5 {[%clk 0:00:22.1]} 65... Rc6+ {[%clk 0:00:08.5]} 66. Kg5 {[%clk 0:00:23.3]}
66... Rd6 {[%clk 0:00:02.6]} 67. Nf6+ {[%clk 0:00:24.2]} 1-0

[Event "*** Titled Tuesday Blitz"]
[Site "Chess.com"]
[Date "2018.08.07"]
[Round "8"]
[White "Tjktiger"]
[Black "MITerryble"]
[Result "0-1"]
[WhiteElo "2547"]
[BlackElo "2772"]
[TimeControl "180+2"]
[EndTime "14:51:37 PDT"]
[Termination "MITerryble won by resignation"]

1. d4 {[%clk 0:03:01.9]} 1... e6 {[%clk 0:03:00.9]} 2. c4 {[%clk 0:03:03.3]}
2... Bb4+ {[%clk 0:03:01.2]} 3. Nd2 {[%clk 0:03:03.7]} 3... Nf6 {[%clk
0:03:01.7]} 4. Nf3 {[%clk 0:03:02.6]} 4... O-O {[%clk 0:03:02]} 5. g3 {[%clk
0:03:00.8]} 5... b6 {[%clk 0:02:59.1]} 6. Bg2 {[%clk 0:03:02]} 6... Bb7 {[%clk
0:03:00]} 7. O-O {[%clk 0:03:03.5]} 7... Bxd2 {[%clk 0:02:59.6]} 8. Qxd2 {[%clk
0:03:00.8]} 8... d6 {[%clk 0:02:59.9]} 9. b3 {[%clk 0:02:58.6]} 9... Nbd7 {[%clk
0:03:00.7]} 10. Bb2 {[%clk 0:02:59.9]} 10... Re8 {[%clk 0:03:01.7]} 11. Rfe1
{[%clk 0:03:00.2]} 11... Qe7 {[%clk 0:02:56.7]} 12. Rad1 {[%clk 0:02:55.5]}
12... a5 {[%clk 0:02:57.5]} 13. Qc1 {[%clk 0:02:47]} 13... a4 {[%clk 0:02:57.7]}
14. b4 {[%clk 0:02:42.8]} 14... e5 {[%clk 0:02:45]} 15. d5 {[%clk 0:02:37.1]}
15... b5 {[%clk 0:01:59.5]} 16. Nd2 {[%clk 0:02:35.6]} 16... Nb6 {[%clk
0:01:51.3]} 17. e4 {[%clk 0:02:31.6]} 17... bxc4 {[%clk 0:01:34.1]} 18. Nxc4
{[%clk 0:02:24.5]} 18... Ba6 {[%clk 0:01:34.7]} 19. Na5 {[%clk 0:02:23.9]} 19...
Bb5 {[%clk 0:01:35.2]} 20. f4 {[%clk 0:02:19.1]} 20... Nfd7 {[%clk 0:01:27.1]}
21. Nc6 {[%clk 0:02:01.9]} 21... Qf8 {[%clk 0:01:26.5]} 22. fxe5 {[%clk
0:02:00.6]} 22... dxe5 {[%clk 0:01:23.6]} 23. a3 {[%clk 0:01:53.3]} 23... Qd6
{[%clk 0:01:21.3]} 24. Na5 {[%clk 0:01:51.1]} 24... h5 {[%clk 0:01:09.8]} 25.
Qg5 {[%clk 0:01:45.7]} 25... Nf6 {[%clk 0:00:55.4]} 26. Rc1 {[%clk 0:01:36.7]}
26... Rxa5 {[%clk 0:00:55.5]} 27. bxa5 {[%clk 0:01:35.7]} 27... Nc4 {[%clk
0:00:56.7]} 28. Bf1 {[%clk 0:01:26.2]} 28... Ng4 {[%clk 0:00:41.5]} 29. Qxh5
{[%clk 0:00:52.5]} 29... Qc5+ {[%clk 0:00:18.3]} 30. Kh1 {[%clk 0:00:53.4]}
30... Nf2+ {[%clk 0:00:19.5]} 31. Kg2 {[%clk 0:00:54.2]} 31... Nxe4 {[%clk
0:00:20.5]} 32. Rxe4 {[%clk 0:00:20.9]} 32... Qxd5 {[%clk 0:00:21.7]} 33. Qf3
{[%clk 0:00:22.1]} 33... Nd2 {[%clk 0:00:19.4]} 34. Qe3 {[%clk 0:00:14.2]} 34...
Bxf1+ {[%clk 0:00:19.1]} 35. Rxf1 {[%clk 0:00:15.6]} 35... Nxe4 {[%clk
0:00:19.2]} 36. Qf3 {[%clk 0:00:13.3]} 36... Rb8 {[%clk 0:00:19.2]} 37. Bc1
{[%clk 0:00:12.5]} 37... Qa2+ {[%clk 0:00:15.4]} 38. Kg1 {[%clk 0:00:11.8]}
38... Nd6 {[%clk 0:00:16.2]} 39. a6 {[%clk 0:00:11.6]} 39... e4 {[%clk
0:00:16.7]} 40. Qc3 {[%clk 0:00:08.6]} 40... Qc4 {[%clk 0:00:14.2]} 41. Qa5
{[%clk 0:00:03.4]} 41... Ra8 {[%clk 0:00:15.2]} 42. a7 {[%clk 0:00:03.5]} 42...
Qd4+ {[%clk 0:00:15.8]} 43. Kh1 {[%clk 0:00:04.3]} 43... Rxa7 {[%clk 0:00:16.7]}
44. Qg5 {[%clk 0:00:05.1]} 44... Ra8 {[%clk 0:00:14.4]} 45. Be3 {[%clk
0:00:05.8]} 45... Qc4 {[%clk 0:00:15]} 46. Kg1 {[%clk 0:00:07]} 46... Re8 {[%clk
0:00:13.9]} 47. Rc1 {[%clk 0:00:07.5]} 47... Qe6 {[%clk 0:00:11.1]} 48. Rxc7
{[%clk 0:00:08.3]} 48... Nf5 {[%clk 0:00:12.3]} 49. Rc3 {[%clk 0:00:05.7]} 49...
Qe5 {[%clk 0:00:12.7]} 50. Rc1 {[%clk 0:00:06.1]} 50... f6 {[%clk 0:00:10.9]}
51. Qf4 {[%clk 0:00:04.9]} 51... Qxf4 {[%clk 0:00:11.2]} 52. Bxf4 {[%clk
0:00:06.8]} 52... e3 {[%clk 0:00:10.7]} 53. Re1 {[%clk 0:00:07.5]} 53... g5
{[%clk 0:00:08]} 54. Bc7 {[%clk 0:00:08.9]} 54... Nd4 {[%clk 0:00:08.3]} 55. Kg2
{[%clk 0:00:10.1]} 55... Nc2 {[%clk 0:00:09.2]} 56. Re2 {[%clk 0:00:10.8]} 56...
Nxa3 {[%clk 0:00:10.4]} 57. Bb6 {[%clk 0:00:09.1]} 57... Nc4 {[%clk 0:00:11.2]}
58. Bd4 {[%clk 0:00:10.7]} 58... Kf7 {[%clk 0:00:12.5]} 59. Kf3 {[%clk
0:00:11.3]} 59... Nd2+ {[%clk 0:00:11.6]} 60. Kg4 {[%clk 0:00:10.9]} 60... Re4+
{[%clk 0:00:11.9]} 61. Kh5 {[%clk 0:00:09.7]} 61... Rxd4 {[%clk 0:00:13.6]} 0-1

[Event "*** Titled Tuesday Blitz"]
[Site "Chess.com"]
[Date "2018.08.07"]
[Round "8"]
[White "Laico"]
[Black "GMKrikor"]
[Result "0-1"]
[WhiteElo "2275"]
[BlackElo "2762"]
[TimeControl "180+2"]
[EndTime "14:51:40 PDT"]
[Termination "GMKrikor won by checkmate"]

1. e4 {[%clk 0:03:01.9]} 1... c5 {[%clk 0:02:53]} 2. Nc3 {[%clk 0:03:01.8]} 2...
e6 {[%clk 0:02:53.4]} 3. f4 {[%clk 0:02:59.9]} 3... d5 {[%clk 0:02:53.8]} 4. Nf3
{[%clk 0:02:58.1]} 4... Nc6 {[%clk 0:02:55]} 5. Bb5 {[%clk 0:02:57.4]} 5... Ne7
{[%clk 0:02:56.1]} 6. exd5 {[%clk 0:02:57.4]} 6... Nxd5 {[%clk 0:02:54]} 7.
Bxc6+ {[%clk 0:02:57.7]} 7... bxc6 {[%clk 0:02:55.3]} 8. Ne5 {[%clk 0:02:29.6]}
8... Bd6 {[%clk 0:02:31.1]} 9. d3 {[%clk 0:02:10.7]} 9... O-O {[%clk 0:02:14.5]}
10. O-O {[%clk 0:02:03.2]} 10... f6 {[%clk 0:02:15.3]} 11. Nc4 {[%clk
0:01:48.2]} 11... Bc7 {[%clk 0:02:16.5]} 12. Ne4 {[%clk 0:01:38.5]} 12... Qe7
{[%clk 0:01:56.7]} 13. Qe1 {[%clk 0:01:33.9]} 13... e5 {[%clk 0:01:41.9]} 14. f5
{[%clk 0:01:28.2]} 14... Nf4 {[%clk 0:01:25.8]} 15. Be3 {[%clk 0:01:17.7]} 15...
Bxf5 {[%clk 0:01:01.6]} 16. Bxc5 {[%clk 0:01:15.5]} 16... Qd7 {[%clk 0:00:53.5]}
17. Bxf8 {[%clk 0:01:12.8]} 17... Rxf8 {[%clk 0:00:55.4]} 18. Kh1 {[%clk
0:01:07.7]} 18... Bg6 {[%clk 0:00:50]} 19. Qg3 {[%clk 0:00:58]} 19... Qd4 {[%clk
0:00:46.9]} 20. Rae1 {[%clk 0:00:56.2]} 20... Qd5 {[%clk 0:00:36.7]} 21. Qe3
{[%clk 0:00:50.8]} 21... Bb8 {[%clk 0:00:30.1]} 22. Qf3 {[%clk 0:00:45]} 22...
Bh5 {[%clk 0:00:25.6]} 23. Qg3 {[%clk 0:00:41.7]} 23... Bg6 {[%clk 0:00:27.1]}
24. Qf3 {[%clk 0:00:42.3]} 24... Bh5 {[%clk 0:00:27.9]} 25. Qg3 {[%clk
0:00:43.5]} 25... Bg6 {[%clk 0:00:29.5]} 26. Ne3 {[%clk 0:00:39]} 26... Qd7
{[%clk 0:00:23.7]} 27. Nc4 {[%clk 0:00:38.2]} 27... Rd8 {[%clk 0:00:14.3]} 28.
Qe3 {[%clk 0:00:34.6]} 28... h6 {[%clk 0:00:12.5]} 29. Qg3 {[%clk 0:00:33.5]}
29... Kh7 {[%clk 0:00:14]} 30. Rf3 {[%clk 0:00:31]} 30... Re8 {[%clk 0:00:14.2]}
31. Rfe3 {[%clk 0:00:32.1]} 31... Nd5 {[%clk 0:00:14.3]} 32. R3e2 {[%clk
0:00:32]} 32... Nf4 {[%clk 0:00:15.8]} 33. Rf2 {[%clk 0:00:33.3]} 33... Nd5
{[%clk 0:00:12.5]} 34. Nc5 {[%clk 0:00:34]} 34... Qe7 {[%clk 0:00:12.6]} 35. Ne4
{[%clk 0:00:34.1]} 35... Qb4 {[%clk 0:00:13.9]} 36. Rff1 {[%clk 0:00:31.3]}
36... Nf4 {[%clk 0:00:14.3]} 37. a3 {[%clk 0:00:31.9]} 37... Qe7 {[%clk
0:00:14.5]} 38. Qf3 {[%clk 0:00:31.5]} 38... Qd7 {[%clk 0:00:14]} 39. Nc3 {[%clk
0:00:31.4]} 39... Bh5 {[%clk 0:00:14]} 40. Qg3 {[%clk 0:00:31.4]} 40... Bf7
{[%clk 0:00:14.8]} 41. Ne4 {[%clk 0:00:30.5]} 41... Bd5 {[%clk 0:00:15.9]} 42.
Rf2 {[%clk 0:00:29.1]} 42... a6 {[%clk 0:00:17.2]} 43. Nc5 {[%clk 0:00:28.9]}
43... Qf7 {[%clk 0:00:16]} 44. Ne4 {[%clk 0:00:28.8]} 44... Qc7 {[%clk
0:00:14.1]} 45. Qe3 {[%clk 0:00:23.6]} 45... Ba7 {[%clk 0:00:06.2]} 46. Qd2
{[%clk 0:00:19.5]} 46... Bxf2 {[%clk 0:00:06.3]} 47. Qxf2 {[%clk 0:00:21.4]}
47... Qd7 {[%clk 0:00:04.3]} 48. Qg3 {[%clk 0:00:18.4]} 48... Qe7 {[%clk
0:00:03.9]} 49. Ncd6 {[%clk 0:00:17.5]} 49... Rd8 {[%clk 0:00:04.4]} 50. Nf5
{[%clk 0:00:17.6]} 50... Qd7 {[%clk 0:00:05.9]} 51. Ne3 {[%clk 0:00:17.3]} 51...
Be6 {[%clk 0:00:05.2]} 52. Kg1 {[%clk 0:00:16.7]} 52... Qa7 {[%clk 0:00:05.6]}
53. Kh1 {[%clk 0:00:16.8]} 53... c5 {[%clk 0:00:06.6]} 54. Nc4 {[%clk
0:00:15.9]} 54... Qc7 {[%clk 0:00:05.4]} 55. Ne3 {[%clk 0:00:16.7]} 55... Qb6
{[%clk 0:00:05.2]} 56. b3 {[%clk 0:00:16.7]} 56... Qa5 {[%clk 0:00:05.7]} 57. a4
{[%clk 0:00:17.1]} 57... Qc7 {[%clk 0:00:06.2]} 58. Qf2 {[%clk 0:00:17.9]} 58...
Qc6 {[%clk 0:00:05.4]} 59. g3 {[%clk 0:00:16.8]} 59... Rxd3 {[%clk 0:00:05.2]}
60. gxf4 {[%clk 0:00:11.8]} 60... Qxe4+ {[%clk 0:00:05.2]} 61. Ng2 {[%clk
0:00:12.9]} 61... Qf3 {[%clk 0:00:05.7]} 62. Qxc5 {[%clk 0:00:07]} 62... Bd5
{[%clk 0:00:04.8]} 63. Qg1 {[%clk 0:00:03.7]} 63... Rd2 {[%clk 0:00:06.3]} 64.
fxe5 {[%clk 0:00:03.3]} 64... Rxg2 {[%clk 0:00:06.8]} 65. Qxg2 {[%clk
0:00:03.5]} 65... Qxg2# {[%clk 0:00:07.7]} 0-1

[Event "*** Titled Tuesday Blitz"]
[Site "Chess.com"]
[Date "2018.08.07"]
[Round "8"]
[White "FairChess_on_YouTube"]
[Black "Annawel"]
[Result "1/2-1/2"]
[WhiteElo "2952"]
[BlackElo "2795"]
[TimeControl "180+2"]
[EndTime "14:51:42 PDT"]
[Termination "Game drawn - insufficient material"]

1. e4 {[%clk 0:03:01.9]} 1... c5 {[%clk 0:02:59.6]} 2. Nc3 {[%clk 0:03:01]} 2...
a6 {[%clk 0:02:55.7]} 3. g3 {[%clk 0:02:58.5]} 3... b5 {[%clk 0:02:56.4]} 4. Bg2
{[%clk 0:02:59.1]} 4... Bb7 {[%clk 0:02:57.4]} 5. Nge2 {[%clk 0:02:59.5]} 5...
e6 {[%clk 0:02:58.1]} 6. d4 {[%clk 0:02:58.2]} 6... cxd4 {[%clk 0:02:58.1]} 7.
Nxd4 {[%clk 0:03:00.1]} 7... Nf6 {[%clk 0:02:54.3]} 8. O-O {[%clk 0:03:00.6]}
8... b4 {[%clk 0:02:48.9]} 9. Na4 {[%clk 0:03:01.4]} 9... Bxe4 {[%clk
0:02:26.4]} 10. Bxe4 {[%clk 0:03:02.1]} 10... Nxe4 {[%clk 0:02:28.3]} 11. Re1
{[%clk 0:03:03.3]} 11... d5 {[%clk 0:02:27.6]} 12. Nxe6 {[%clk 0:03:04]} 12...
fxe6 {[%clk 0:02:27.4]} 13. Qh5+ {[%clk 0:03:04.8]} 13... g6 {[%clk 0:02:21.1]}
14. Qe5 {[%clk 0:03:05.6]} 14... Qf6 {[%clk 0:02:14.6]} 15. Rxe4 {[%clk
0:03:06.4]} 15... Qxe5 {[%clk 0:02:16.2]} 16. Rxe5 {[%clk 0:03:08]} 16... Kf7
{[%clk 0:02:17.8]} 17. Re3 {[%clk 0:03:09.1]} 17... Nd7 {[%clk 0:02:16.9]} 18.
Rf3+ {[%clk 0:03:09.2]} 18... Ke8 {[%clk 0:02:04.5]} 19. Bd2 {[%clk 0:03:08.3]}
19... Rc8 {[%clk 0:02:05.2]} 20. Re1 {[%clk 0:03:05.6]} 20... Rc6 {[%clk
0:02:06.2]} 21. c3 {[%clk 0:03:03.4]} 21... a5 {[%clk 0:02:06.7]} 22. b3 {[%clk
0:03:03.3]} 22... Be7 {[%clk 0:01:54.3]} 23. Rfe3 {[%clk 0:02:55]} 23... Kf7
{[%clk 0:01:53.3]} 24. Rf3+ {[%clk 0:02:56.2]} 24... Ke8 {[%clk 0:01:54.4]} 25.
Nb2 {[%clk 0:02:52.1]} 25... Rf8 {[%clk 0:01:53.7]} 26. Rxf8+ {[%clk 0:02:50.8]}
26... Kxf8 {[%clk 0:01:54]} 27. Rc1 {[%clk 0:02:36.2]} 27... e5 {[%clk
0:01:32.3]} 28. c4 {[%clk 0:02:22.6]} 28... Nb6 {[%clk 0:01:11.7]} 29. cxd5
{[%clk 0:01:57.2]} 29... Rxc1+ {[%clk 0:01:12.6]} 30. Bxc1 {[%clk 0:01:58.8]}
30... Nxd5 {[%clk 0:01:14.3]} 31. Nc4 {[%clk 0:01:59.5]} 31... Nc3 {[%clk
0:01:14.9]} 32. Bh6+ {[%clk 0:01:51.3]} 32... Kf7 {[%clk 0:01:05.4]} 33. Nxe5+
{[%clk 0:01:30.4]} 33... Ke6 {[%clk 0:01:06.1]} 34. Nc6 {[%clk 0:01:31.9]} 34...
a4 {[%clk 0:00:59.2]} 35. bxa4 {[%clk 0:00:58.4]} 35... Bc5 {[%clk 0:00:39.5]}
36. Kf1 {[%clk 0:00:36]} 36... Nxa2 {[%clk 0:00:39.1]} 37. Ke2 {[%clk
0:00:29.6]} 37... Nc3+ {[%clk 0:00:38.1]} 38. Kd3 {[%clk 0:00:30.2]} 38... Kd5
{[%clk 0:00:39.8]} 39. Nxb4+ {[%clk 0:00:26.4]} 39... Bxb4 {[%clk 0:00:41.7]}
40. Bd2 {[%clk 0:00:26.7]} 40... Na2 {[%clk 0:00:43.2]} 41. a5 {[%clk
0:00:23.7]} 41... Bxd2 {[%clk 0:00:32.8]} 42. Kxd2 {[%clk 0:00:25.6]} 42... Nb4
{[%clk 0:00:34.2]} 43. Ke3 {[%clk 0:00:22.3]} 43... Ke5 {[%clk 0:00:26.4]} 44.
f4+ {[%clk 0:00:22.3]} 44... Kf5 {[%clk 0:00:27.2]} 45. Kf3 {[%clk 0:00:21.4]}
45... Na6 {[%clk 0:00:26.9]} 46. g4+ {[%clk 0:00:22]} 46... Ke6 {[%clk 0:00:28]}
47. Ke3 {[%clk 0:00:16.9]} 47... Nc5 {[%clk 0:00:26]} 48. h3 {[%clk 0:00:16]}
48... Kd5 {[%clk 0:00:22.3]} 49. h4 {[%clk 0:00:14.3]} 49... Ke6 {[%clk
0:00:23.3]} 50. Ke2 {[%clk 0:00:13.1]} 50... h6 {[%clk 0:00:21.3]} 51. Kf3
{[%clk 0:00:12.9]} 51... Kd5 {[%clk 0:00:21.1]} 52. Ke3 {[%clk 0:00:09.1]} 52...
Ke6 {[%clk 0:00:21.1]} 53. Kf3 {[%clk 0:00:10.5]} 53... Kd5 {[%clk 0:00:22.4]}
54. Ke3 {[%clk 0:00:08.1]} 54... Kd6 {[%clk 0:00:19.8]} 55. Kf3 {[%clk 0:00:08]}
55... Ke6 {[%clk 0:00:19.9]} 56. Ke2 {[%clk 0:00:07.6]} 56... Kd5 {[%clk
0:00:20.5]} 57. Ke3 {[%clk 0:00:08.6]} 57... Na6 {[%clk 0:00:18.1]} 58. g5
{[%clk 0:00:06.8]} 58... h5 {[%clk 0:00:17.7]} 59. f5 {[%clk 0:00:06.9]} 59...
gxf5 {[%clk 0:00:18.3]} 60. Kf4 {[%clk 0:00:05.1]} 60... Ke6 {[%clk 0:00:18.9]}
61. g6 {[%clk 0:00:05.9]} 61... Kf6 {[%clk 0:00:19.8]} 62. g7 {[%clk 0:00:07.1]}
62... Kxg7 {[%clk 0:00:20.8]} 63. Kxf5 {[%clk 0:00:08.2]} 63... Kh6 {[%clk
0:00:21.6]} 64. Kf6 {[%clk 0:00:09.5]} 64... Kh7 {[%clk 0:00:21.3]} 65. Kg5
{[%clk 0:00:10.4]} 65... Kg7 {[%clk 0:00:22.8]} 66. Kxh5 {[%clk 0:00:11.7]}
66... Kf6 {[%clk 0:00:23.6]} 67. Kg4 {[%clk 0:00:12.3]} 67... Kg6 {[%clk
0:00:25.1]} 68. Kf4 {[%clk 0:00:12.4]} 68... Kh5 {[%clk 0:00:26.1]} 69. Ke5
{[%clk 0:00:14]} 69... Kxh4 {[%clk 0:00:25.8]} 70. Kd6 {[%clk 0:00:15.5]} 70...
Kg5 {[%clk 0:00:27.4]} 71. Kc6 {[%clk 0:00:17]} 71... Kf6 {[%clk 0:00:28.6]} 72.
Kb6 {[%clk 0:00:18.6]} 72... Nb4 {[%clk 0:00:29.9]} 73. Kc5 {[%clk 0:00:18.7]}
73... Na6+ {[%clk 0:00:31.1]} 74. Kb5 {[%clk 0:00:19.6]} 74... Nc7+ {[%clk
0:00:32.3]} 75. Kb6 {[%clk 0:00:19.6]} 75... Nd5+ {[%clk 0:00:33.7]} 76. Kc5
{[%clk 0:00:20.5]} 76... Nc7 {[%clk 0:00:34.8]} 77. Kc6 {[%clk 0:00:22.1]} 77...
Na6 {[%clk 0:00:36.1]} 78. Kb6 {[%clk 0:00:23.7]} 78... Nb4 {[%clk 0:00:37.3]}
79. Kb5 {[%clk 0:00:25.3]} 79... Nd5 {[%clk 0:00:38.7]} 80. a6 {[%clk
0:00:26.9]} 80... Nc7+ {[%clk 0:00:39.9]} 81. Kc6 {[%clk 0:00:28.5]} 81... Nxa6
{[%clk 0:00:41.8]} 1/2-1/2